lending/lending_fUSD_20240621
["ID","MTS","AMOUNT","RATE_DAILY","PERIOD"]
[330078662,1718989185268,-1061.99,0.00022738,4]
[330078663,1718989185307,-500.0,0.00022738,4]
[330078664,1718989185347,-3307.05,0.00022738,4]
[330078665,1718989185385,-1771.16,0.00022738,4]
[330078666,1718989185424,-500.0,0.00022738,4]
[330078667,1718989185464,-728.36,0.00022738,4]
[330078668,1718989185505,-3237.2,0.00022738,4]
[330078669,1718989185546,-29459.4,0.00022738,4]
[330078670,1718989185585,-500.0,0.00022738,4]
[330078671,1718989185629,-1631.78,0.00022738,4]
[330078672,1718989185667,-500.0,0.00022738,4]
[330078673,1718989185705,-2027.71,0.00022738,4]
[330078674,1718989185744,-304.26787148,0.00022738,4]
[330078675,1718989185783,-500.0,0.00022738,4]
[330078676,1718989185822,-1333.67,0.00022738,4]
[330078677,1718989185864,-155.0,0.00022738,4]
[330078678,1718989185904,-1330.9,0.00022738,4]
[330078679,1718989185944,-939.45,0.00022739,4]
[330078680,1718989185985,-500.0,0.00022739,4]
[330078681,1718989186025,-500.0,0.00022739,4]
[330078682,1718989186064,-500.0,0.00022739,4]
[330078683,1718989186104,-1046.79,0.00022739,4]
[330078684,1718989186144,-829.0,0.00022739,4]
[330078685,1718989186184,-500.0,0.00022739,4]
[330078686,1718989186223,-1055.53,0.00022739,4]
[330078687,1718989186271,-500.0,0.00022739,4]
[330078688,1718989186309,-615.47434532,0.00022739,4]
[330078689,1718989186346,-500.0,0.00022739,4]
[330078690,1718989186382,-500.0,0.00022739,4]
[330078691,1718989186421,-500.0,0.00022739,4]
[330078692,1718989186458,-500.0,0.00022739,4]
[330078693,1718989186495,-500.0,0.00022739,4]
[330078694,1718989186531,-1054.47,0.00022739,4]
[330078695,1718989186567,-500.0,0.00022739,4]
[330078696,1718989186604,-1320.43,0.00022739,4]
[330078697,1718989186640,-599.27,0.00022739,4]
[330078698,1718989186677,-500.0,0.00022739,4]
[330078699,1718989186712,-500.0,0.00022739,4]
[330078700,1718989186764,-182.15069814,0.00022739,4]
[330078701,1718989186803,-1034.11,0.00022739,4]
[330078702,1718989186841,-755.09,0.00022739,4]
[330078703,1718989186881,-159.48567515,0.00022739,4]
[330078704,1718989186918,-680.92,0.00022739,4]
[330078705,1718989186955,-924.86,0.00022739,4]
[330078706,1718989186992,-500.0,0.00022739,4]
[330078707,1718989187032,-500.0,0.00022739,4]
[330078708,1718989187071,-508.96,0.00022739,4]
[330078709,1718989187110,-667.49,0.00022739,4]
[330078710,1718989187147,-575.12,0.00022739,4]
[330078711,1718989187182,-1149.07,0.00022739,4]
[330078712,1718989187217,-500.0,0.00022739,4]
[330078713,1718989187262,-500.0,0.00022739,4]
[330078714,1718989187301,-641.08,0.00022739,4]
[330078715,1718989187338,-858.96,0.00022739,4]
[330078716,1718989187372,-150.04478936,0.00022739,4]
[330078717,1718989187409,-764.69,0.00022739,4]
[330078718,1718989187445,-500.0,0.00022739,4]
[330078719,1718989187489,-697.17,0.00022739,4]
[330078720,1718989187539,-500.0,0.00022739,4]
[330078721,1718989187585,-683.01,0.00022739,4]
[330078722,1718989187628,-502.08,0.00022739,4]
[330078723,1718989187674,-604.32,0.00022739,4]
[330078724,1718989187718,-500.0,0.00022739,4]
[330078725,1718989187765,-500.0,0.00022739,4]
[330078726,1718989187809,-741.46,0.00022739,4]
[330078727,1718989187853,-623.95435525,0.00022739,4]
[330078728,1718989187903,-500.0,0.00022739,4]
[330078729,1718989187944,-500.0,0.00022739,4]
[330078731,1718989187983,-500.0,0.00022739,4]
[330078732,1718989188021,-500.0,0.00022739,4]
[330078733,1718989188060,-500.0,0.00022739,4]
[330078734,1718989188097,-600.75,0.00022739,4]
[330078735,1718989188134,-500.0,0.00022739,4]
[330078736,1718989188170,-626.89,0.00022739,4]
[330078737,1718989188206,-500.0,0.00022739,4]
[330078738,1718989188242,-630.23,0.00022739,4]
[330078739,1718989188285,-667.87,0.00022739,4]
[330078740,1718989188320,-1297.45,0.00022739,4]
[330078741,1718989188356,-500.0,0.00022739,4]
[330078742,1718989188393,-500.0,0.00022739,4]
[330078743,1718989188428,-500.0,0.00022739,4]
[330078744,1718989188465,-1399.32,0.00022739,4]
[330078745,1718989188506,-500.0,0.00022739,4]
[330078746,1718989188542,-500.0,0.00022739,4]
[330078747,1718989188589,-504.83552531,0.00022739,4]
[330078748,1718989188632,-500.0,0.00022739,4]
[330078749,1718989188677,-900.37,0.00022739,4]
[330078750,1718989188721,-742.99,0.00022739,4]
[330078751,1718989188770,-730.15,0.00022739,4]
[330078752,1718989188814,-500.0,0.00022739,4]
[330078753,1718989188854,-1161.0,0.00022739,4]
[330078754,1718989188902,-968.47,0.00022739,4]
[330078755,1718989188944,-500.0,0.00022739,4]
[330078756,1718989188984,-578.7,0.00022739,4]
[330078757,1718989189022,-500.0,0.00022739,4]
[330078758,1718989189066,-500.0,0.00022739,4]
[330078759,1718989189105,-500.0,0.00022739,4]
[330078760,1718989189144,-948.5,0.00022739,4]
[330078761,1718989189182,-500.0,0.00022739,4]
[330078762,1718989189220,-388.71823849,0.00022739,4]
[330078763,1718989189260,-532.92,0.00022739,4]
[330078764,1718989189297,-500.0,0.00022739,4]
[330078765,1718989189336,-500.0,0.00022739,4]
[330078766,1718989189374,-652.53,0.00022739,4]
[330078767,1718989189410,-806.48,0.00022739,4]
[330078768,1718989189447,-304.08906024,0.00022739,4]
[330078769,1718989189486,-556.94,0.00022739,4]
[330078770,1718989189753,-500.0,0.00022739,4]
[330078771,1718989189792,-630.9,0.00022739,4]
[330078772,1718989189830,-825.66,0.00022739,4]
[330078773,1718989189869,-500.0,0.00022739,4]
[330078774,1718989189907,-963.53,0.00022739,4]
[330078775,1718989189945,-697.99,0.00022739,4]
[330078776,1718989189988,-1424.78,0.00022739,4]
[330078777,1718989190027,-500.0,0.00022739,4]
[330078778,1718989190066,-500.0,0.00022739,4]
[330078779,1718989190103,-1122.75,0.00022739,4]
[330078780,1718989190142,-2613.66,0.00022739,4]
[330078781,1718989190180,-857.63,0.00022739,4]
[330078782,1718989190219,-500.0,0.00022739,4]
[330078783,1718989190259,-727.53,0.00022739,4]
[330078784,1718989190296,-517.23,0.00022739,4]
[330078785,1718989190337,-500.0,0.00022739,4]
[330078786,1718989190375,-961.15,0.00022739,4]
[330078787,1718989190413,-669.82,0.00022739,4]
[330078788,1718989190452,-500.0,0.00022739,4]
[330078789,1718989190494,-745.8,0.00022739,4]
[330078790,1718989190540,-500.0,0.00022739,4]
[330078791,1718989190588,-1381.93,0.00022739,4]
[330078792,1718989190634,-500.0,0.00022739,4]
[330078793,1718989190679,-500.0,0.00022739,4]
[330078794,1718989190724,-500.0,0.00022739,4]
[330078795,1718989190763,-500.0,0.00022739,4]
[330078796,1718989190800,-500.0,0.00022739,4]
[330078797,1718989190837,-551.78,0.00022739,4]
[330078798,1718989190875,-791.72,0.00022739,4]
[330078799,1718989190914,-1331.83,0.00022739,4]
[330078800,1718989190957,-1073.22,0.00022739,4]
[330078801,1718989190995,-558.32,0.00022739,4]
[330078802,1718989191034,-523.0,0.00022739,4]
[330078803,1718989191072,-500.0,0.00022739,4]
[330078804,1718989191110,-500.0,0.00022739,4]
[330078805,1718989191148,-1338.07,0.00022739,4]
[330078806,1718989191185,-500.0,0.00022739,4]
[330078807,1718989191226,-567.98,0.00022739,4]
[330078808,1718989191264,-500.0,0.00022739,4]
[330078809,1718989191300,-1007.63,0.00022739,4]
[330078810,1718989191339,-295.6759281,0.00022739,4]
[330078811,1718989191377,-734.67,0.00022739,4]
[330078812,1718989191415,-902.48,0.00022739,4]
[330078813,1718989191455,-592.11,0.00022739,4]
[330078814,1718989191495,-396.97182141,0.00022739,4]
[330078815,1718989191535,-500.0,0.00022739,4]
[330078816,1718989191573,-500.0,0.00022739,4]
[330078817,1718989191612,-1084.11,0.00022739,4]
[330078818,1718989191650,-500.0,0.00022739,4]
[330078819,1718989191688,-628.67,0.00022739,4]
[330078820,1718989191726,-500.0,0.00022739,4]
[330078821,1718989191765,-1112.98,0.00022739,4]
[330078822,1718989191812,-500.0,0.00022739,4]
[330078823,1718989191862,-555.51100677,0.00022739,4]
[330078824,1718989191905,-1441.11,0.00022739,4]
[330078825,1718989191946,-250.0,0.00022739,4]
[330078826,1718989191985,-511.9015031,0.00022739,4]
[330078827,1718989192024,-613.86,0.00022739,4]
[330078828,1718989192066,-669.47,0.00022739,4]
[330078829,1718989192105,-500.0,0.00022739,4]
[330078830,1718989192144,-1300.08,0.00022739,4]
[330078831,1718989192183,-500.0,0.00022739,4]
[330078832,1718989192219,-500.0,0.00022739,4]
[330078833,1718989192257,-500.0,0.00022739,4]
[330078834,1718989192298,-500.0,0.00022739,4]
[330078835,1718989192334,-881.23,0.00022739,4]
[330078836,1718989192372,-1066.61,0.00022739,4]
[330078837,1718989192409,-952.61,0.00022739,4]
[330078838,1718989192444,-500.0,0.00022739,4]
[330078839,1718989192480,-500.0,0.00022739,2]
[330078840,1718989192522,-500.0,0.00022739,4]
[330078841,1718989192559,-500.0,0.00022739,4]
[330078842,1718989192595,-1213.27,0.00022739,4]
[330078843,1718989192631,-785.84,0.00022739,4]
[330078844,1718989192667,-500.0,0.00022739,4]
[330078845,1718989192704,-815.6,0.00022739,4]
[330078846,1718989192739,-816.06,0.00022739,4]
[330078847,1718989192776,-500.0,0.00022739,4]
[330078848,1718989192812,-781.94,0.00022739,4]
[330078849,1718989192850,-742.71,0.00022739,4]
[330078850,1718989192888,-500.0,0.00022739,4]
[330078851,1718989192925,-500.0,0.00022739,4]
[330078852,1718989192965,-920.07,0.00022739,4]
[330078853,1718989193004,-500.0,0.00022739,4]
[330078854,1718989193046,-500.0,0.00022739,4]
[330078855,1718989193084,-935.89,0.00022739,4]
[330078856,1718989193121,-500.0,0.00022739,4]
[330078857,1718989193158,-500.0,0.00022739,4]
[330078858,1718989193194,-512.1,0.00022739,4]
[330078859,1718989193229,-500.0,0.00022739,4]
[330078860,1718989193266,-500.0,0.00022739,4]
[330078861,1718989193304,-736.93,0.00022739,4]
[330078862,1718989193343,-954.31,0.00022739,4]
[330078863,1718989193381,-500.0,0.00022739,4]
[330078864,1718989193416,-556.99,0.00022739,4]
[330078865,1718989193452,-527.62,0.00022739,4]
[330078866,1718989193492,-887.18,0.00022739,4]
[330078867,1718989193532,-500.0,0.00022739,4]
[330078868,1718989193573,-500.0,0.00022739,4]
[330078869,1718989193611,-500.0,0.00022739,4]
[330078870,1718989193648,-558.12,0.00022739,4]
[330078871,1718989193686,-500.0,0.00022739,4]
[330078872,1718989193722,-500.0,0.00022739,4]
[330078873,1718989193762,-652.29,0.00022739,4]
[330078874,1718989193799,-500.0,0.00022739,4]
[330078875,1718989193836,-840.32,0.00022739,4]
[330078876,1718989193876,-847.29,0.00022739,4]
[330078877,1718989193913,-500.0,0.00022739,4]
[330078878,1718989193952,-500.0,0.00022739,4]
[330078879,1718989193993,-500.0,0.00022739,4]
[330078880,1718989194031,-853.36,0.00022739,4]
[330078881,1718989194069,-500.0,0.00022739,4]
[330078882,1718989194106,-500.0,0.00022739,4]
[330078883,1718989194145,-500.0,0.00022739,4]
[330078884,1718989194180,-1081.0,0.00022739,4]
[330078885,1718989194217,-500.0,0.00022739,4]
[330078886,1718989194484,-500.0,0.00022739,4]
[330078887,1718989194528,-500.0,0.00022739,4]
[330078888,1718989194567,-500.0,0.00022739,4]
[330078889,1718989194607,-500.0,0.00022739,4]
[330078890,1718989194648,-500.0,0.00022739,4]
[330078891,1718989194689,-931.63,0.00022739,4]
[330078892,1718989194729,-500.0,0.00022739,4]
[330078893,1718989194770,-500.0,0.00022739,4]
[330078894,1718989194813,-762.93,0.00022739,4]
[330078895,1718989194853,-500.0,0.00022739,4]
[330078896,1718989194899,-673.38,0.00022739,4]
[330078897,1718989194942,-500.0,0.00022739,4]
[330078898,1718989194984,-186.91302858,0.00022739,4]
[330078899,1718989195024,-706.69,0.00022739,4]
[330078900,1718989195065,-612.35,0.00022739,4]
[330078901,1718989195104,-500.0,0.00022739,4]
[330078902,1718989195142,-500.54159163,0.00022739,4]
[330078903,1718989195180,-1430.27,0.00022739,4]
[330078904,1718989195216,-987.57,0.00022739,4]
[330078905,1718989195253,-500.0,0.00022739,4]
[330078906,1718989195294,-627.93,0.00022739,4]
[330078907,1718989195332,-500.0,0.00022739,4]
[330078908,1718989195369,-617.49,0.00022739,4]
[330078909,1718989195405,-500.0,0.00022739,4]
[330078910,1718989195444,-1185.05,0.00022739,4]
[330078911,1718989195483,-500.0,0.00022739,4]
[330078912,1718989195521,-500.0,0.00022739,4]
[330078913,1718989195560,-713.85,0.00022739,4]
[330078914,1718989195599,-399.65310953,0.00022739,4]
[330078915,1718989195638,-595.68,0.00022739,4]
[330078916,1718989195679,-508.4,0.00022739,4]
[330078917,1718989195720,-631.99,0.00022739,4]
[330078918,1718989195762,-1075.92,0.00022739,4]
[330078919,1718989195803,-500.0,0.00022739,4]
[330078920,1718989195845,-500.0,0.00022739,4]
[330078921,1718989195889,-500.0,0.00022739,4]
[330078922,1718989195932,-605.96,0.00022739,4]
[330078923,1718989195976,-500.0,0.00022739,4]
[330078924,1718989196018,-511.82,0.00022739,4]
[330078925,1718989196062,-500.0,0.00022739,4]
[330078926,1718989196104,-500.0,0.00022739,4]
[330078927,1718989196144,-1346.43,0.00022739,4]
[330078928,1718989196184,-500.0,0.00022739,4]
[330078929,1718989196224,-821.04,0.00022739,4]
[330078930,1718989196265,-500.0,0.00022739,4]
[330078931,1718989196307,-425.07139559,0.00022739,4]
[330078932,1718989196347,-500.0,0.00022739,4]
[330078933,1718989196385,-500.0,0.00022739,4]
[330078934,1718989196426,-500.0,0.00022739,4]
[330078935,1718989196468,-500.0,0.00022739,4]
[330078936,1718989196511,-1223.11,0.00022739,4]
[330078937,1718989196552,-500.0,0.00022739,4]
[330078938,1718989196591,-500.0,0.00022739,4]
[330078939,1718989196632,-500.0,0.00022739,4]
[330078940,1718989196675,-540.42,0.00022739,4]
[330078941,1718989196717,-500.0,0.00022739,4]
[330078942,1718989196758,-577.17,0.00022739,4]
[330078943,1718989196803,-1010.38,0.00022739,4]
[330078944,1718989196845,-500.0,0.00022739,4]
[330078945,1718989196892,-500.0,0.00022739,4]
[330078946,1718989196935,-713.59,0.00022739,4]
[330078947,1718989196978,-500.0,0.00022739,4]
[330078948,1718989197020,-673.9,0.00022739,4]
[330078949,1718989197064,-500.0,0.00022739,4]
[330078950,1718989197107,-595.96,0.00022739,4]
[330078951,1718989197150,-500.0,0.00022739,4]
[330078952,1718989197189,-272.22324512,0.00022739,4]
[330078953,1718989197230,-780.85,0.00022739,4]
[330078954,1718989197269,-500.0,0.00022739,4]
[330078955,1718989197309,-2230.36,0.00022739,4]
[330078956,1718989197348,-812.96,0.00022739,4]
[330078957,1718989197389,-500.0,0.00022739,4]
[330078958,1718989197427,-500.0,0.00022739,4]
[330078959,1718989197466,-583.22,0.00022739,4]
[330078960,1718989197504,-500.0,0.00022739,4]
[330078961,1718989197544,-527.6,0.00022739,4]
[330078962,1718989197583,-500.0,0.00022739,4]
[330078963,1718989197622,-716.45,0.00022739,4]
[330078964,1718989197659,-500.0,0.00022739,4]
[330078965,1718989197697,-1675.29,0.00022739,4]
[330078966,1718989197733,-500.0,0.00022739,4]
[330078967,1718989197770,-2341.37,0.00022739,4]
[330078968,1718989197805,-904.15,0.00022739,4]
[330078969,1718989197842,-737.08,0.00022739,4]
[330078970,1718989197880,-500.0,0.00022739,4]
[330078971,1718989197921,-500.0,0.00022739,4]
[330078972,1718989197959,-500.0,0.00022739,4]
[330078973,1718989197995,-500.0,0.00022739,4]
[330078974,1718989198035,-854.49,0.00022739,4]
[330078975,1718989198078,-1414.89,0.00022739,4]
[330078976,1718989198116,-500.0,0.00022739,4]
[330078977,1718989198156,-523.56,0.00022739,4]
[330078978,1718989198197,-500.0,0.00022739,4]
[330078979,1718989198234,-500.0,0.00022739,4]
[330078980,1718989198273,-527.99,0.00022739,4]
[330078981,1718989198310,-500.0,0.00022739,4]
[330078982,1718989198350,-500.0,0.00022739,4]
[330078983,1718989198387,-500.0,0.00022739,4]
[330078984,1718989198426,-1478.35,0.00022739,4]
[330078985,1718989198466,-1641.43,0.00022739,4]
[330078986,1718989198506,-638.94,0.00022739,4]
[330078987,1718989198547,-1102.1,0.00022739,4]
[330078988,1718989198586,-503.09,0.00022739,4]
[330078989,1718989198627,-500.0,0.00022739,4]
[330078990,1718989198668,-598.0,0.00022739,4]
[330078991,1718989198707,-500.0,0.00022739,4]
[330078992,1718989198746,-842.59,0.00022739,4]
[330078993,1718989198784,-500.0,0.00022739,4]
[330078994,1718989198824,-500.0,0.00022739,4]
[330078995,1718989198861,-1511.25280146,0.00022739,4]
[330078996,1718989198905,-1208.66,0.00022739,4]
[330078997,1718989198951,-745.93,0.00022739,4]
[330078998,1718989198990,-1166.84,0.00022739,4]
[330078999,1718989199028,-500.0,0.00022739,4]
[330079000,1718989199066,-500.0,0.00022739,7]
[330079001,1718989199105,-500.0,0.00022739,4]
[330079002,1718989199143,-675.87,0.00022739,4]
[330079003,1718989199389,-500.0,0.00022739,4]
[330079004,1718989199429,-194.27740731,0.00022739,4]
[330079005,1718989199469,-1329.84,0.00022739,4]
[330079006,1718989199510,-500.0,0.00022739,4]
[330079007,1718989199550,-500.0,0.00022739,4]
[330079008,1718989199588,-1244.41,0.00022739,4]
[330079009,1718989199627,-1110.3,0.00022739,4]
[330079010,1718989199666,-1120.29,0.00022739,4]
[330079011,1718989199705,-529.2,0.00022739,4]
[330079012,1718989199744,-625.53,0.00022739,4]
[330079013,1718989199784,-500.0,0.00022739,4]
[330079014,1718989199825,-1049.53,0.00022739,4]
[330079015,1718989199864,-500.0,0.00022739,4]
[330079016,1718989199910,-500.0,0.00022739,4]
[330079017,1718989199952,-500.0,0.00022739,4]
[330079018,1718989199992,-500.0,0.00022739,4]
[330079019,1718989200032,-500.0,0.00022739,4]
[330079020,1718989200072,-500.0,0.00022739,4]
[330079021,1718989200112,-500.0,0.00022739,4]
[330079022,1718989200152,-500.0,0.00022739,4]
[330079023,1718989200193,-1552.35,0.00022739,4]
[330079024,1718989200237,-918.31,0.00022739,4]
[330079025,1718989200281,-536.86,0.00022739,4]
[330079026,1718989200321,-500.0,0.00022739,4]
[330079027,1718989200361,-500.0,0.00022739,4]
[330079028,1718989200402,-600.92,0.00022739,4]
[330079029,1718989200448,-573.57,0.00022739,4]
[330079030,1718989200491,-2593.5,0.00022739,4]
[330079031,1718989200532,-614.38,0.00022739,4]
[330079032,1718989200575,-500.0,0.00022739,4]
[330079033,1718989200618,-500.0,0.00022739,4]
[330079034,1718989200665,-500.0,0.00022739,4]
[330079035,1718989200709,-500.0,0.00022739,4]
[330079036,1718989200747,-500.0,0.00022739,4]
[330079037,1718989200787,-627.50716522,0.00022739,4]
[330079038,1718989200825,-500.0,0.00022739,4]
[330079039,1718989200869,-1358.67,0.00022739,4]
[330079040,1718989200907,-1704.8,0.00022739,4]
[330079041,1718989200948,-500.0,0.00022739,2]
[330079042,1718989200986,-789.83,0.00022739,4]
[330079043,1718989201031,-500.0,0.00022739,4]
[330079044,1718989201071,-500.0,0.00022739,4]
[330079045,1718989201111,-580.39,0.00022739,4]
[330079046,1718989201157,-500.0,0.00022739,4]
[330079047,1718989201198,-1727.55,0.00022739,4]
[330079048,1718989201238,-1153.51,0.00022739,4]
[330079049,1718989201287,-888.36,0.00022739,4]
[330079050,1718989201327,-500.0,0.00022739,4]
[330079051,1718989201372,-559.95,0.00022739,4]
[330079052,1718989201420,-1728.03,0.00022739,4]
[330079053,1718989201459,-500.0,0.00022739,4]
[330079054,1718989201498,-840.1,0.00022739,4]
[330079055,1718989201535,-551.97,0.00022739,4]
[330079056,1718989201572,-500.0,0.00022739,4]
[330079057,1718989201609,-500.0,0.00022739,4]
[330079058,1718989201649,-500.0,0.00022739,4]
[330079059,1718989201689,-500.0,0.00022739,4]
[330079060,1718989201736,-514.36,0.00022739,4]
[330079061,1718989201778,-500.0,0.00022739,4]
[330079062,1718989201821,-500.0,0.00022739,4]
[330079063,1718989201865,-500.0,0.00022739,4]
[330079064,1718989201911,-1809.78,0.00022739,4]
[330079065,1718989201952,-1193.59,0.00022739,4]
[330079066,1718989201992,-710.42,0.00022739,4]
[330079067,1718989202030,-952.28,0.00022739,4]
[330079068,1718989202071,-788.5,0.00022739,4]
[330079069,1718989202111,-738.08,0.00022739,4]
[330079070,1718989202151,-921.65,0.00022739,4]
[330079071,1718989202193,-500.0,0.00022739,4]
[330079072,1718989202231,-664.19,0.00022739,4]
[330079073,1718989202277,-1125.8,0.00022739,4]
[330079074,1718989202316,-500.0,0.00022739,4]
[330079075,1718989202356,-948.77,0.00022739,4]
[330079076,1718989202395,-2054.16,0.00022739,4]
[330079077,1718989202436,-1141.26,0.00022739,4]
[330079078,1718989202476,-953.06,0.00022739,4]
[330079079,1718989202516,-500.0,0.00022739,4]
[330079080,1718989202559,-500.0,0.00022739,4]
[330079081,1718989202598,-500.0,0.00022739,4]
[330079082,1718989202635,-1511.18,0.00022739,4]
[330079083,1718989202673,-1244.28,0.00022739,4]
[330079084,1718989202712,-576.67,0.00022739,4]
[330079085,1718989202750,-2173.9,0.00022739,4]
[330079086,1718989202793,-1743.39,0.00022739,4]
[330079087,1718989202832,-540.71,0.00022739,4]
[330079088,1718989202879,-948.86,0.00022739,4]
[330079089,1718989202919,-500.0,0.00022739,4]
[330079090,1718989202960,-500.0,0.00022739,4]
[330079091,1718989203001,-500.0,0.00022739,4]
[330079092,1718989203042,-1674.61,0.00022739,4]
[330079093,1718989203083,-500.0,0.00022739,4]
[330079094,1718989203121,-669.81,0.00022739,4]
[330079095,1718989203159,-564.52050207,0.00022739,4]
[330079096,1718989203198,-200.0,0.00022739,4]
[330079097,1718989203238,-805.69,0.00022739,4]
[330079098,1718989203281,-500.0,0.00022739,4]
[330079099,1718989203322,-1406.58,0.00022739,4]
[330079100,1718989203361,-500.0,0.00022739,4]
[330079101,1718989203400,-712.34,0.00022739,4]
[330079102,1718989203439,-714.53,0.00022739,4]
[330079103,1718989203481,-1080.92,0.00022739,4]
[330079104,1718989203525,-717.33,0.00022739,4]
[330079105,1718989203565,-500.0,0.00022739,4]
[330079106,1718989203606,-1926.29,0.00022739,4]
[330079107,1718989203645,-973.55,0.00022739,4]
[330079108,1718989203686,-826.02,0.00022739,4]
[330079109,1718989203725,-500.0,0.00022739,4]
[330079110,1718989203766,-529.09,0.00022739,4]
[330079111,1718989203808,-500.0,0.00022739,4]
[330079112,1718989203850,-586.43,0.00022739,4]
[330079113,1718989203894,-557.92,0.00022739,4]
[330079114,1718989203936,-2232.82,0.00022739,4]
[330079115,1718989203977,-500.0,0.00022739,4]
[330079116,1718989204019,-500.0,0.00022739,4]
[330079117,1718989204059,-974.98,0.00022739,4]
[330079118,1718989204098,-500.0,0.00022739,4]
[330079119,1718989204139,-500.0,0.00022739,4]
[330079120,1718989204401,-500.0,0.00022739,4]
[330079121,1718989204449,-673.14,0.00022739,4]
[330079122,1718989204498,-595.1,0.00022739,4]
[330079123,1718989204538,-177.0909271,0.00022739,4]
[330079124,1718989204583,-500.0,0.00022739,4]
[330079125,1718989204628,-842.73,0.00022739,4]
[330079126,1718989204668,-500.0,0.00022739,4]
[330079127,1718989204707,-500.0,0.00022739,4]
[330079128,1718989204747,-1273.54,0.00022739,4]
[330079129,1718989204788,-511.16,0.00022739,4]
[330079130,1718989204829,-500.0,0.00022739,8]
[330079131,1718989204868,-875.9,0.00022739,4]
[330079132,1718989204916,-772.24,0.00022739,4]
[330079133,1718989204957,-500.0,0.00022739,4]
[330079134,1718989204998,-1837.22,0.00022739,4]
[330079135,1718989205039,-656.6,0.00022739,4]
[330079136,1718989205080,-1557.92,0.00022739,4]
[330079137,1718989205121,-651.56,0.00022739,4]
[330079138,1718989205161,-500.0,0.00022739,4]
[330079139,1718989205201,-500.0,0.00022739,4]
[330079140,1718989205240,-590.21,0.00022739,4]
[330079141,1718989205281,-725.12,0.00022739,4]
[330079142,1718989205319,-568.75,0.00022739,4]
[330079143,1718989205357,-1561.0,0.00022739,4]
[330079144,1718989205395,-897.44,0.00022739,4]
[330079145,1718989205437,-500.0,0.00022739,4]
[330079146,1718989205474,-768.92,0.00022739,4]
[330079147,1718989205517,-1147.1,0.00022739,4]
[330079148,1718989205564,-643.42,0.00022739,4]
[330079149,1718989205605,-500.0,0.00022739,4]
[330079150,1718989205644,-767.44,0.00022739,4]
[330079151,1718989205685,-675.53,0.00022739,4]
[330079152,1718989205727,-561.39,0.00022739,4]
[330079153,1718989205769,-845.8,0.00022739,4]
[330079154,1718989205817,-500.0,0.00022739,4]
[330079155,1718989205858,-1474.02,0.00022739,4]
[330079156,1718989205903,-505.65455868,0.00022739,4]
[330079157,1718989205946,-627.86,0.00022739,4]
[330079158,1718989205990,-500.0,0.00022739,4]
[330079159,1718989206035,-500.0,0.00022739,4]
[330079160,1718989206079,-1168.38,0.00022739,4]
[330079161,1718989206120,-500.0,0.00022739,4]
[330079162,1718989206161,-500.0,0.00022739,4]